Cogmind - Beta 17 @@@ ROGUE MODE // 2026.07.14 @ 11:45:34 Player: kite Result: Self-destructed Performance ------------- Evolutions (2) 1000 Regions Visited (7) 1400 Robots Destroyed (70) 350 Value Destroyed (3237) 3237 Prototype IDs (34) 680 Alien Tech Used (0) 0 Bonus (1253) 1253 TOTAL SCORE: 7920 Bonus ------- High Alert Combat Kills 442 Follower Combat Kills 311 Entered Garrisons 200 Aligned with FarCom 300 Cogmind --------- Core Integrity 273/550 Matter 85/300 Energy 160/160 System Corruption 4% Temperature Cool (62) Movement Treading (156) Location -8/Materials Parts ------- > --- POWER (1) -------- Light Nuclear Core > --- PROPULSION (4) --- Light Treads Light Treads Light Treads Advanced Treads > --- UTILITY (3) ------ Large Storage Unit Hardened Heavy Armor Plating > --- WEAPON (3) ------- Grenade Launcher Makeshift Hammer > --- INVENTORY (15) --- Light Treads Light Treads Light Treads Advanced Treads Improved Melee Analysis Suite Hardened Heavy Armor Plating Hardened Heavy Armor Plating Hardened Heavy Armor Plating System Shield AWS/Thermal Remote Datajack Peak State ------------ > --- POWER ------------ Light Nuclear Core > --- PROPULSION ------- Aluminum Leg Aluminum Leg Aluminum Leg Carbon-fiber Leg > --- UTILITY ---------- Large Storage Unit Melee Analysis Suite Improved Medium Armor Plating > --- WEAPON ----------- AWS/Thermal Makeshift Hammer > --- INVENTORY -------- Light Treads Carbon-fiber Leg High-capacity Matter Pod Improved Terrain Scanner Improved Medium Armor Plating Improved Medium Armor Plating Improved Medium Armor Plating Improved Medium Armor Plating Improved Medium Armor Plating Improved Medium Armor Plating System Shield Grenade Launcher Rocket Launcher Datajack Remote Datajack [Rating: 41] Favorites ----------- Power Light Nuclear Core Engine Light Ion Engine Power Core Light Nuclear Core Propulsion Light Treads Treads Light Treads Leg Aluminum Leg Flight Unit Flight Unit Utility Large Storage Unit Device Improved Terrain Scanner Storage Large Storage Unit Processor Targeting Computer Protection Improved Medium Armor Plating Weapon Assault Rifle Energy Gun AWS/Thermal Ballistic Gun Assault Rifle Launcher Grenade Launcher Impact Weapon Makeshift Hammer Special Melee Weapon Datajack Build | -11 -10 -10 -10 -9 -8 -8 -8 ------- Run | Yrd Mat Min Exi Min Mat Gar Mat Slots Evolved 4 | . . . . . 4 . . Power . | . . . . . . . . Propulsion 2 | . . . . . 2 . . Utility 1 | . . . . . 1 . . Weapon 1 | . . . . . 1 . . Parts Attached 55 | 7 4 11 2 1 1 28 1 Power 8 | 1 2 2 . 1 . 2 . Engine 4 | 1 2 . . 1 . . . Core 4 | . . 2 . . . 2 . Reactor . | . . . . . . . . Propulsion 22 | 2 . 4 . . 1 14 1 Treads 13 | 2 . 1 . . 1 8 1 Leg 8 | . . 2 . . . 6 . Wheel . | . . . . . . . . Hover . | . . . . . . . . Flight 1 | . . 1 . . . . . Utility 10 | 2 2 . 1 . . 5 . Device 1 | 1 . . . . . . . Storage 3 | 1 1 . 1 . . . . Processor 3 | . 1 . . . . 2 . Hackware . | . . . . . . . . Protection 3 | . . . . . . 3 . Artifact . | . . . . . . . . Weapon 15 | 2 . 5 1 . . 7 . Energy Gun 3 | . . . . . . 3 . Energy Cannon . | . . . . . . . . Ballistic Gun 8 | 2 . 5 . . . 1 . Ballistic Cannon . | . . . . . . . . Launcher 2 | . . . . . . 2 . Special Weapon . | . . . . . . . . Impact Weapon 1 | . . . . . . 1 . Slashing Weapon . | . . . . . . . . Piercing Weapon . | . . . . . . . . Special Melee Weapon 1 | . . . 1 . . . . Unidentified Prototypes . | . . . . . . . . Corrupted Parts 1 | . . . . . . 1 . System Corruption 4 | . . . . . . 4 . Parts Lost 19 | . 2 8 . 1 . 7 1 Power 7 | . 2 2 . 1 . 2 . Propulsion 5 | . . 2 . . . 3 . Utility 1 | . . . . . . 1 . Weapon 6 | . . 4 . . . 1 1 Highest Loss Streak 4 | . 1 4 . 1 . 4 1 To Critical Strikes . | . . . . . . . . Average Backups 11 | . 3 11 11 12 9 12 11 Power . | . . . . . . . . Propulsion 1 | . . . 1 1 . 2 3 Utility 4 | . . 4 5 5 4 5 5 Weapon 3 | . 1 4 5 5 4 2 1 Tool/Special . | . . . . . . . . Unused Backups 18 | . . . . . . 11 7 Power . | . . . . . . . . Propulsion 3 | . . . . . . 2 1 Utility 14 | . . . . . . 9 5 Weapon . | . . . . . . . . Tool/Special 1 | . . . . . . . 1 Average Slot Usage (%) 93 | . 97 99 100 96 96 87 89 Engine 3 | . 12 3 . 7 9 1 . Core 7 | . . 10 14 3 . 6 9 Treads 17 | . 28 13 . . 17 20 36 Leg 13 | . . 12 28 28 18 14 . Device 1 | . 8 . . . 7 . . Storage 11 | . 14 14 14 14 9 9 9 Processor 10 | . 5 14 14 14 9 8 . Protection 3 | . . . . . . 6 9 Energy Gun 4 | . . . . . . 8 8 Ballistic Gun 14 | . 27 28 15 28 25 1 . Launcher 1 | . . . . . . 2 9 Impact Weapon 3 | . . . . . . 7 9 Special Melee Weapon 1 | . . . 12 . . . . Peak Build Rating 41 | 9 9 13 13 12 18 41 32 Average Rating 20 | 4 7 10 11 10 17 33 31 On Entrance 12 | . 9 7 11 12 11 18 30 Avg Prop Armor Cover (%) 10 | . . 3 . . 15 11 . Naked Turns . | . . . . . . . . Heaviest Build 55 | 13 27 28 28 28 30 55 55 Greatest Support 82 | 40 40 42 20 20 20 80 82 Greatest Overweight (x) 2 | . . 2 1 1 1 2 . Average Overweight (x) . | . . . 1 1 1 . . Largest Inventory Capacity 15 | 8 15 15 15 15 15 15 15 Average Capacity 14 | 7 10 15 15 15 15 15 15 Most Carried 15 | 2 7 15 15 14 13 15 15 Average Carried 11 | . 3 11 12 13 10 14 14 Final Capacity 15 | 8 15 15 15 15 15 15 15 Final Carried 15 | 2 7 11 13 14 13 15 15 Class Distribution -------------------- 54% | Scavenger-Mutant 37% | Mutant 7% | Scavenger-Skirmisher Dominant Class ---------------- Mutant | -10/Materials Mutant | -10/Mines Mutant | -10/Exiles Scavenger-Mutant | -9/Mines Scavenger-Skirmisher | -8/Materials Scavenger-Mutant | -8/Garrison Scavenger-Mutant | -8/Materials Resources | -11 -10 -10 -10 -9 -8 -8 -8 ----------- Run | Yrd Mat Min Exi Min Mat Gar Mat Matter Collected 1302 | 230 191 415 10 . 49 356 51 Remotely . | . . . . . . . . Salvage Created 2240 | 28 251 271 . 33 60 1546 51 Parts 142 | 3 20 25 . 4 3 83 4 Haulers Intercepted 1 | . . . . . 1 . . Recyclers Shooed . | . . . . . . . . Parts Field Recycled . | . . . . . . . . Retrieved Matter . | . . . . . . . . Parts Self-Destructed . | . . . . . . . . Prevented . | . . . . . . . . Parts Restored . | . . . . . . . . Kills | -11 -10 -10 -10 -9 -8 -8 -8 ------- Run | Yrd Mat Min Exi Min Mat Gar Mat Combat Hostiles Destroyed 61 | . 6 9 . 1 . 44 1 Melee 8 | . . . . . . 7 1 Guns 48 | . 6 9 . 1 . 32 . Classes Destroyed 11 | 1 5 1 . . 1 3 . Worker 4 | . 2 2 . . . . . Builder 1 | . 1 . . . . . . Tunneler 3 | 1 . 2 . . . . . Hauler 1 | . . . . . 1 . . Watcher 2 | . 1 . . . . 1 . Swarmer 27 | . 3 5 . . . 19 . Grunt 19 | . 3 2 . 1 . 13 . Sentry 9 | . . . . . . 8 1 Hunter 1 | . . . . . . 1 . Programmer 3 | . . . . . . 3 . Assembled 2 | . . 2 . . . . . Best Kill Streak 6 | 1 4 3 . 1 1 6 1 Combat Bots Only 6 | . 4 3 . 1 . 6 1 Max Kills in Single Turn 2 | 1 1 1 . 1 1 2 1 Gunslinging . | . . . . . . . . Exploded . | . . . . . . . . Melee 1 | . . . . . . 1 1 Uniques/NPCs Destroyed . | . . . . . . . . Combat | -11 -10 -10 -10 -9 -8 -8 -8 -------- Run | Yrd Mat Min Exi Min Mat Gar Mat Hostile Shots Fired 283 | . 27 82 . 3 1 138 32 Missed 75 | . 11 16 . 1 1 37 9 Hits 208 | . 16 66 . 2 . 101 23 Melee 8 | . . 7 . 1 . . . Projectile 200 | . 16 59 . 1 . 101 23 Critical Strikes 4 | . 1 1 . . . 1 1 Part Disruptions 2 | . . 2 . . . . . Damage Taken 3181 | . 290 831 . 45 . 1618 397 Core 462 | . 22 163 . . . 230 47 Absorbed by Shields . | . . . . . . . . Core Remaining (%) 63 | 100 . . . 26 . . . Volleys Fired 112 | 1 26 45 . 6 3 29 2 Largest 3 | 2 2 2 . 2 3 2 1 Hottest 99 | 40 40 40 . 40 60 99 69 Shots Fired 308 | 2 52 86 . 12 9 145 2 Gun 285 | 2 52 86 . 12 9 122 2 Cannon . | . . . . . . . . Launcher 23 | . . . . . . 23 . Special . | . . . . . . . . Kinetic 163 | 2 52 86 . 12 9 2 . Thermal 122 | . . . . . . 120 2 Explosive 23 | . . . . . . 23 . Electromagnetic . | . . . . . . . . Robot Hit Streak 17 | 1 10 9 . 5 3 15 17 Robot Miss Streak 6 | . 4 3 . 2 3 6 . Penetration Max . | . . . . . . . . Secondary Targets 1 | . . 1 . . . . . Max Gunslinging Chain 1 | . . 1 . . . . . Autonomous 104 | . . . . . . 104 . Shots Hit Robots 247 | 1 30 53 3 9 6 134 11 Core Hits 102 | 1 15 24 . 3 2 55 2 Critical Kills 3 | . . . . . . 2 1 Critical Parts Destroyed 5 | . . . . . . 4 1 Critical Strikes 10 | . . . . . . 8 2 Burn 1 | . . . . . . 1 . Smash 9 | . . . . . . 7 2 Melee Attacks 85 | . . . 3 . . 68 14 Impact 82 | . . . . . . 68 14 Slashing . | . . . . . . . . Piercing . | . . . . . . . . Sneak Attacks 7 | . . . 3 . . 3 1 Combat Hostiles 3 | . . . . . . 3 . Follow-up Attacks . | . . . . . . . . Damage Inflicted 5864 | 26 418 511 . 100 58 4380 371 Guns 3797 | 26 418 504 . 100 58 2653 38 Cannons . | . . . . . . . . Explosions 662 | . . . . . . 662 . Melee 1398 | . . . . . . 1065 333 Ramming 7 | . . 7 . . . . . Kinetic 1106 | 26 418 504 . 100 58 . . Thermal 2691 | . . . . . . 2653 38 Explosive 662 | . . . . . . 662 . Electromagnetic . | . . . . . . . . Impact 1398 | . . . . . . 1065 333 Slashing . | . . . . . . . . Piercing . | . . . . . . . . Highest Corruption 5 | . . . . 5 . 4 4 Average Corruption 4 | . . . . 5 . 4 4 Corruption Purged . | . . . . . . . . Corruption Blocked . | . . . . . . . . Effects 9 | . . . . 1 . 2 6 Message Errors 2 | . . . . . . . 2 Matter Fused 1 | . . . . . . . 1 Heat Flow Errors 2 | . . . . 1 . . 1 Energy Discharges 2 | . . . . . . 1 1 Data Loss (minor) 1 | . . . . . . . 1 Alerts 1 | . . . . . . 1 . Overload Shots . | . . . . . . . . Overflow Damage 381 | . . . . . . 322 59 Projectiles . | . . . . . . . . Explosions . | . . . . . . . . Melee 381 | . . . . . . 322 59 Knockbacks 3 | . . . . . . 3 . Impact 3 | . . . . . . 3 . Kinetic . | . . . . . . . . Secondary . | . . . . . . . . Self-Inflicted Damage 29 | . . . . . . 29 . Shots 1 | . . . . . . 1 . Rammed 1 | . . 1 . . . . . Targets Rammed 2 | . . 2 . . . . . Kicked . | . . . . . . . . Crushed 1 | . . 1 . . . . . Highest Temperature 335 | . 20 40 . 213 8 56 335 Average Temperature 56 | . 6 7 . 69 6 21 213 Received Heat Transfer 962 | . 108 326 . 6 . 396 126 Effects 1 | . . . . . . . 1 Interference 1 | . . . . . . . 1 Siege Activations . | . . . . . . . . Martial Activations . | . . . . . . . . Shielding Activations . | . . . . . . . . Robots Disrupted . | . . . . . . . . Combat Hostiles . | . . . . . . . . Robots Corrupted 5 | . . . . . . 5 . Combat Hostiles 5 | . . . . . . 5 . Parts Fried 8 | . . . . . . 8 . Impact Corruptions 14 | . . . . . . 12 2 Robots Melted . | . . . . . . . . Combat Hostiles . | . . . . . . . . Parts Melted 7 | . . . . . . 7 . Heat Transferred 3306 | . . . . . . 3232 74 Parts Sabotaged . | . . . . . . . . Parts Stolen . | . . . . . . . . Parts Stripped . | . . . . . . . . Power Chain Reactions . | . . . . . . . . Alert | -11 -10 -10 -10 -9 -8 -8 -8 ------- Run | Yrd Mat Min Exi Min Mat Gar Mat Maximum Alert Level 5 | . . . . . . 5 3 Low Security (%) 57 | 100 100 100 . 100 100 17 . Level 1 2 | . . . . . . 5 . Level 2 10 | . . . . . . 21 . Level 3 9 | . . . . . . 10 100 Level 4 11 | . . . . . . 25 . Level 5 8 | . . . . . . 18 . High Security . | . . . . . . . . Max Security . | . . . . . . . . Peak Influence 1771 | 5 120 75 . 64 39 1771 865 Initial 863 | . . 23 . . 13 25 863 Average 455 | . 41 14 . 42 17 886 845 Influence Increases 2615 | 5 203 260 . 74 69 1876 128 Destroy 0b10 Robot/C 1380 | . 120 180 . 60 20 960 40 Destroy 0b10 Robot/NC 65 | 5 20 20 . . 5 10 5 Destroy Leader 144 | . 32 40 . 10 12 30 20 Allied During Kill 50 | . . 5 . 4 2 37 2 Disable Machine 15 | . . . . . . 15 . Anti-Garrison Action 650 | . . . . . . 650 . Destroy Structure 131 | . 1 . . . . 129 1 Lose Combat Pursuer 180 | . 30 15 . . 30 45 60 Influence Decreases 1764 | 5 142 306 15 40 64 144 1048 Entered New Map 996 | . . 38 15 . 21 14 908 Time Decay 568 | 5 132 248 . 30 43 . 110 Lost Part 120 | . 10 20 . 10 . 70 10 Lost Ally 80 | . . . . . . 60 20 Squads Dispatched 3 | . 1 1 . . 1 . . Investigation 2 | . . 1 . . 1 . . Extermination . | . . . . . . . . Reinforcement 1 | . 1 . . . . . . Assault . | . . . . . . . . Garrison . | . . . . . . . . Intercept . | . . . . . . . . Searches Triggered . | . . . . . . . . Construction Impeded . | . . . . . . . . Haulers Reinforced . | . . . . . . . . Active Scanning Responses . | . . . . . . . . Cargo Convoy Interrupts . | . . . . . . . . Stealth | -11 -10 -10 -10 -9 -8 -8 -8 --------- Run | Yrd Mat Min Exi Min Mat Gar Mat Distress Signals 1 | . . . . . . . 1 Communications Jammed . | . . . . . . . . Distress Signals . | . . . . . . . . Times Spotted 93 | . 11 20 . 3 4 47 8 Peak Tracking Total 11 | . 3 11 . 3 3 6 4 Tactical Retreats 11 | . 1 3 . . 2 3 2 Traps | -11 -10 -10 -10 -9 -8 -8 -8 ------- Run | Yrd Mat Min Exi Min Mat Gar Mat Traps Triggered 9 | . 3 . . . 1 5 . Indirectly . | . . . . . . . . Trap Hack Attempts . | . . . . . . . . Triggered . | . . . . . . . . Disarmed . | . . . . . . . . Reprogrammed . | . . . . . . . . Reused . | . . . . . . . . Traps Extracted . | . . . . . . . . Installed . | . . . . . . . . Triggered . | . . . . . . . . Machines | -11 -10 -10 -10 -9 -8 -8 -8 ---------- Run | Yrd Mat Min Exi Min Mat Gar Mat Machines Disabled 10 | . . . . . . 10 . Max in Single Turn 1 | . . . . . . 1 . Garrison Relay 6 | . . . . . . 6 . Phase Generator 1 | . . . . . . 1 . Machines Repaired . | . . . . . . . . Machines Dismantled . | . . . . . . . . Machines Sabotaged . | . . . . . . . . Overloaded Fab Kills . | . . . . . . . . Hacking | -11 -10 -10 -10 -9 -8 -8 -8 --------- Run | Yrd Mat Min Exi Min Mat Gar Mat Machines Accessed 6 | . 1 1 2 . 1 1 . Terminals 2 | . 1 . . . . 1 . Fabricators . | . . . . . . . . Repair Stations . | . . . . . . . . Recycling Units . | . . . . . . . . Scanalyzers . | . . . . . . . . Garrison Access 1 | . . . . . 1 . . Total Hacks 9 | . 1 1 5 . 1 1 . Successful 9 | . 1 1 5 . 1 1 . Failed . | . . . . . . . . Catastrophic . | . . . . . . . . Database Lockouts . | . . . . . . . . Manual 2 | . 1 . 1 . . . . Terminals 2 | . 1 . . . . 1 . Fabricators . | . . . . . . . . Repair Stations . | . . . . . . . . Recycling Units . | . . . . . . . . Scanalyzers . | . . . . . . . . Garrison Access 1 | . . . . . 1 . . Terminal Hacks 8 | . 1 1 5 . . 1 . Record 4 | . . . 4 . . . . Part Schematic 1 | . 1 . . . . . . Open Door 2 | . . 1 . . . 1 . Proto ID Catalog 1 | . . . 1 . . . . Fabricator Hacks . | . . . . . . . . Repair Station Hacks . | . . . . . . . . Recycling Unit Hacks . | . . . . . . . . Scanalyzer . | . . . . . . . . Garrison Access Hacks 1 | . . . . . 1 . . Unlock Access 1 | . . . . . 1 . . Unauthorized Hacks . | . . . . . . . . Terminals . | . . . . . . . . Fabricators . | . . . . . . . . Repair Stations . | . . . . . . . . Recycling Units . | . . . . . . . . Scanalyzers . | . . . . . . . . Garrison Access . | . . . . . . . . Data Cores Recovered . | . . . . . . . . Used . | . . . . . . . . Hacking Detections 1 | . . . . . . 1 . Full Trace Events . | . . . . . . . . Feedback Events . | . . . . . . . . Feedback Blocked . | . . . . . . . . Robot Schematics Acquired . | . . . . . . . . Robots Built . | . . . . . . . . Authchips . | . . . . . . . . Time . | . . . . . . . . Total Robot Build Rating . | . . . . . . . . Part Schematics Acquired 1 | . 1 . . . . . . Parts Built . | . . . . . . . . Authchips . | . . . . . . . . Time . | . . . . . . . . Total Part Build Rating . | . . . . . . . . Part Studies Acquired . | . . . . . . . . Parts Repaired . | . . . . . . . . Time . | . . . . . . . . Parts Recycled . | . . . . . . . . Recycled Matter . | . . . . . . . . Retrieved Matter . | . . . . . . . . Retrieved Components . | . . . . . . . . Parts Scanalyzed . | . . . . . . . . Part Schematics Acquired . | . . . . . . . . Parts Damaged . | . . . . . . . . Bothacking | -11 -10 -10 -10 -9 -8 -8 -8 ------------ Run | Yrd Mat Min Exi Min Mat Gar Mat Used RIF Installer . | . . . . . . . . Robots Hacked 3 | . . . 3 . . . . Non-combat 2 | . . . 2 . . . . Combat 1 | . . . 1 . . . . Robot Hacks Applied 3 | . . . 3 . . . . parse_system 3 | . . . 3 . . . . Relay Couplers Released 23 | . . . . . . 23 . Machine Destruction 23 | . . . . . . 23 . Fabnet Peak Effective % . | . . . . . . . . Robots Rewired 4 | . . . . . . 4 . Allies Hacked . | . . . . . . . . Hacks Repelled . | . . . . . . . . Allies | -11 -10 -10 -10 -9 -8 -8 -8 -------- Run | Yrd Mat Min Exi Min Mat Gar Mat Total Allies 7 | . . 3 . . . 4 . Largest Group 3 | . . 3 2 1 1 2 1 Highest-Rated Group 62 | . . 40 24 16 16 62 21 Highest-Rated Ally 34 | . . 16 16 16 16 34 21 Initial Warlord ECA Mod 11 | . . . . . . . 11 Total Orders . | . . . . . . . . Ally Attacks 83 | . . 11 . 8 5 50 9 Total Damage 1478 | . . 125 . 94 32 1028 199 Kills 13 | . . 2 . 2 1 6 2 Allies Corrupted . | . . . . . . . . Allies Melted . | . . . . . . . . Intel | -11 -10 -10 -10 -9 -8 -8 -8 ------- Run | Yrd Mat Min Exi Min Mat Gar Mat Active Infowar (turns) 541 | 13 279 . . . 105 144 . Terrain 541 | 13 279 . . . 105 144 . Robot Analysis Total . | . . . . . . . . Derelict Logs Recovered 2 | . . 2 . . . . . Drone Launches . | . . . . . . . . Drone Recoveries . | . . . . . . . . Exploration | -11 -10 -10 -10 -9 -8 -8 -8 ------------- Run | Yrd Mat Min Exi Min Mat Gar Mat Turns Passed 5358 | 97 490 1652 477 71 108 2233 230 Spaces Moved 2671 | 54 247 827 245 26 39 1123 110 Core 4 | 4 . . . . . . . Treads 1406 | 50 247 443 . . . 556 110 Legs 1261 | . . 384 245 26 39 567 . Wheels . | . . . . . . . . Hover . | . . . . . . . . Flight . | . . . . . . . . Fastest Speed 50 | 50 160 152 190 190 190 120 156 Average Speed 166 | 151 160 177 190 190 190 154 156 Slowest Speed 260 | 160 160 260 190 190 190 260 160 Overloaded Moves . | . . . . . . . . Propulsion Burnouts . | . . . . . . . . Robots Hopped . | . . . . . . . . Potential Cave-ins . | . . . . . . . . Cave-ins Triggered . | . . . . . . . . Exploration Rate (%) 41 | 4 37 99 60 16 7 92 17 Regions Visited 7 Branch Regions 3 Pre-discovered Areas 1 | . . . 1 . . . . Known Exits Taken 1 | . . . . . 1 . . Unknown Exits Taken 5 | 1 1 1 1 1 . . . Scrap Searched . | . . . . . . . . Spaces Dug 12 | . . . . . . 11 1 Terrain Destroyed 138 | . . . . . . 137 1 Melee 12 | . . . . . . 11 1 Projectile . | . . . . . . . . AOE 126 | . . . . . . 126 . Terrain Rammed . | . . . . . . . . Walls Destroyed . | . . . . . . . . Machines Disabled . | . . . . . . . . Actions | -11 -10 -10 -10 -9 -8 -8 -8 --------- Run | Yrd Mat Min Exi Min Mat Gar Mat Total 3329 | 64 287 930 255 36 67 1538 152 Wait 227 | . 2 36 2 2 18 145 22 Move 2664 | 53 246 826 244 25 39 1121 110 Hop . | . . . . . . . . Pick Up 53 | 3 4 6 2 1 3 33 1 Fast Attach 27 | 6 6 4 . 1 . 10 . Attach 22 | 1 1 6 . . 4 10 . Detach 5 | . 1 1 . . . 3 . Swap 20 | . 1 3 2 1 . 12 1 Drop 49 | . . 1 2 . . 44 2 Fire 112 | 1 26 45 . 6 3 29 2 Melee 85 | . . . 3 . . 68 14 Ram . | . . . . . . . . Kick . | . . . . . . . . Crush 2 | . . 2 . . . . . Escape Stasis 20 | . . . . . . 20 . Rewire 43 | . . . . . . 43 . Trap . | . . . . . . . . Miscellaneous . | . . . . . . . . Route ------- -11/Scrapyard -10/Materials (discovered 2 exits: [*Mat] / *Min) -10/Mines (discovered 4 exits: [*Mat x2] / *Exi / [*Sub]) -10/Exiles -9/Mines -8/Materials -8/Garrison (discovered 3 exits: [*Mat x3]) -8/Materials History --------- Turn | Location | Event 8 | -11/Scrapyard | Discovered new exit (range 14) 98 | -11/Scrapyard | Entered Materials 164 | -10/Materials | Discovered new exit (range 8) 218 | -10/Materials | Discovered new exit (range 7) 310 | -10/Materials | Build established: Mutant 588 | -10/Materials | Entered Mines 595 | -10/Mines | Received a Rocket Launcher from a helpful Derelict 612 | -10/Mines | Learned Materials terminal intel 661 | -10/Mines | Discovered new exit (range 6) 690 | -10/Mines | A weapon hastily lodged in a ceiling crevice suddenly fell to the ground 918 | -10/Mines | Met a Derelict shopkeep closing up shop 1124 | -10/Mines | Assembled infested the area 1183 | -10/Mines | Core integrity fell below 50% 1201 | -10/Mines | Lost 4 parts (1p1n2w) 1273 | -10/Mines | Discovered new exit (range 10) 1311 | -10/Mines | Learned Materials garrison access intel 1741 | -10/Mines | Assisted by bots powering up and referring to "LRC-V3" 1782 | -10/Mines | Build established: Scavenger-Mutant 1989 | -10/Mines | Discovered new exit (range 7) 2227 | -10/Mines | Deemed a non-threat by the Exiles lab entrance 2229 | -10/Mines | Discovered new exit (range 5) 2240 | -10/Mines | Entered Exiles 2240 | -10/Exiles | Accompanied by 2 allies 2288 | -10/Exiles | Met 8R-AWN 2321 | -10/Exiles | Met EX-HEX 2376 | -10/Exiles | Met EX-BIN 2400 | -10/Exiles | Aligned with FarCom system 2402 | -10/Exiles | Given EX-Vault access code 2446 | -10/Exiles | Opened EX-Vault 2465 | -10/Exiles | Found AWS/Thermal 2504 | -10/Exiles | Warned to stay clear of 0b10 Research branches 2559 | -10/Exiles | Met EX-DEC 2576 | -10/Exiles | Learned location of Zion (-6) 2594 | -10/Exiles | Build established: Mutant 2692 | -10/Exiles | Discovered new exit (range 14) 2717 | -10/Exiles | Left Exiles lab with AWS/Thermal 2717 | -10/Exiles | Entered Mines 2717 | -9/Mines | Accompanied by 2 allies 2724 | -9/Mines | Met a Derelict bent on vengeance 2745 | -9/Mines | Discovered new exit (range 10) 2788 | -9/Mines | Entered Materials 2788 | -8/Materials | Accompanied by 1 ally 2788 | -8/Materials | Evolved 4 slots: Propulsion x2, Utility x1, Weapon x1 2789 | -8/Materials | Loaded intel: 12 terminal locations 2790 | -8/Materials | Loaded intel: 1 garrison access location 2896 | -8/Materials | Identified exit to Garrison 2896 | -8/Materials | Entered Garrison 2896 | -8/Garrison | Accompanied by 1 ally 3014 | -8/Garrison | Triggered checkpoint 3038 | -8/Garrison | Garrison Relay disabled 3112 | -8/Garrison | Triggered checkpoint 3320 | -8/Garrison | Build established: Scavenger-Mutant 3330 | -8/Garrison | Triggered checkpoint 3380 | -8/Garrison | Triggered checkpoint 3484 | -8/Garrison | Triggered checkpoint 3549 | -8/Garrison | Garrison Relay disabled 3550 | -8/Garrison | Triggered checkpoint 3587 | -8/Garrison | Discovered new exit (range 12) 3690 | -8/Garrison | Triggered checkpoint 3727 | -8/Garrison | Discovered new exit (range 13) 3842 | -8/Garrison | Triggered checkpoint 4067 | -8/Garrison | Garrison Relay disabled 4080 | -8/Garrison | Triggered checkpoint 4118 | -8/Garrison | Triggered checkpoint 4230 | -8/Garrison | AWS/Thermal suddenly broke down 4466 | -8/Garrison | Discovered new exit (range 10) 4522 | -8/Garrison | Triggered checkpoint 4553 | -8/Garrison | Garrison Relay disabled 4686 | -8/Garrison | Phase Generator disabled 4751 | -8/Garrison | Attempted to access garrison exit controls, blocked by remote lockdown 4808 | -8/Garrison | Spotted B-75 Beast 4845 | -8/Garrison | Allies destroyed B-75 Beast 4845 | -8/Garrison | Garrison Relay disabled 4861 | -8/Garrison | Lost 4 parts (1p2n1w) 5129 | -8/Garrison | Entered Materials 5129 | -8/Materials | Accompanied by 1 ally 5352 | -8/Materials | Core integrity fell below 50% 5359 | -8/Materials | Self-destructed Last Messages --------------- crushing effect. 05266_ W-25 Informer sends out distress signal. 05286_ System corrupted: Energy discharge (-54). 05308_ System corrupted: Matter fused (-10). 05321_ Terminal disabled. 05324_ System corrupted: Heat flow error (+264). 05324_ Y-45 Defender suffers critical hit (Smash). 05324_ Destroyed Lgt. Treads. 05324_ Y-45 Defender system corrupted by crushing effect. 05325_ Overheating: System interference. 05325_ Mak. Hammer temporarily disabled. 05330_ Hvy. Laser destroyed. 05336_ Critical hit (Burn: +37). 05354_ System corrupted: Component data lost. 05356_ Y-45 Defender suffers critical hit (Smash). 05356_ Y-45 Defender destroyed. 05358_ Acquired 51 matter. Map ----- +----------------------------------------------------+ | ???????????????????????????????????????????????? | | ???????????????????????????????????????????????? | | ???????????????????????????????????????????????? | | ???????????????????????????????????????????????? | | ???????????????????????????????????????????????? | | ???????????????????????????????????????????????? | | ???????????????????????????????????????????????? | | ???????????????????????????????????????????????? | | ???????????????????????????????????????????????? | | ???????????????????????????????????????????????? | | ???????????????????????????????????????????????? | | ???????????????????????????????????????????????? | | ???????????????????????????????????????????????? | | ??????????????????? ?????????????????????????? | | ??????????????????? ?????????????????????????? | | ??????????????????? ?????????????????????????? | | ??????????????????? +????????????????????????? | | ??????????????????? #?????? ????????????????? | | ?????????????????""" #?????? ????????????????? | | ??????????????????"" ##????# #???????????????? | | ??????????????????"" #???? ???????????????? | | ?????????????????? ???? #??????????????? | | ??????????????????? ????? +??????????????? | | ??????????????????? ????? #??????????????? | | ???????????????????# ####### #???????????????? | | ???????????????????# ##!@! # #???????????????? | | ???????????????????# ##!"[ + #???????????????? | | ???????????????????# ##YT" # #???????????????? | | ??????????????????## ## "" # ###########?????? | | ??????????????????# # # # #?????? | | ????????###########/ # # # = #?????? | | ????????# """ # " # # + #?????? | | ????????# "R" # # + # #?????? | | ????????# [] " " ## ### # ###########?????? | | ????????# ]] # #?###### # ! = #?????? | | ????????# ! ##+######## # #?????? | | ????????# # ## # #?????? | | ?#??????# ?# """"" ## # """ #?????? | | ?# ?????? ???# =""""" ## + """ #?????? | | ## #######/##???# %""""" ## # """ #?????? | | ##### !""""" ## # "Y" #?????? | | w+ """"" ## # """ #?????? | | ##### """"" ## ########????????? | | ########### #???# """"" ## #???????????????? | | ???######?# #???# ## #???????????????? | | ??? ?# #########+##### #???????????????? | | ???"" """ # ##########??????? | | ???"" """ # #??????? | | ???"" """ + """ """ #??????? | | # # """ """ #??????? | +----------------------------------------------------+ Best States ------------- Heat Dissipation 31 Energy Generation 14 Energy Capacity 250 Matter Stores 300 Matter Capacity 300 Sight Range 16 Terrain Scan Range 16 Terrain Scan Density 10 Armor Coverage 600 Evasion (%) 55 Targeting Accuracy 5 Melee Accuracy 6 Recoil Reduction 4 Item Schematics ----------------- Huge Storage Unit | -10/Materials | Hacked Robot Schematics ------------------ None Fabricated ------------ Nothing Repaired ---------- Nothing Studied --------- None Alien Tech Used ----------------- None Achievements -------------- None Challenges ------------ None Game ------ Seed FocalSalvageLeg Manual? 0 Play Time 00:23:34 Cumulative 454.6 hours Start 2026.07.14 @ 11:23:24 End 2026.07.14 @ 11:45:34 Sessions 1 Manual Loads 0 Difficulty Rogue Special Mode None Game No. 419 Rogue 419 Adventurer 0 Explorer 0 Win Type - Total 11 Types 7/0/2/1/0/0/0/0/0/1 Lore% 61 Gallery% 69 Achievement% 65 Wizard Run 0 Options --------- Layout 1 ASCII 0 Keyboard 0 Movement Mouse Keybinds 0 Fullscreen 2 Font 24/Cog Map View 50x35 Zoom Use 12% Tactical HUD 1 Map Filters NONE Filters NONE Steam 1 RUN: 74ab5e6c-c1d3-4421-9d9c-8d6636aca549